[Event "Nové Hrady - Open"]
[Site "Nové Hrady, Czech Republic"]
[Date "2023.08.18"]
[Round "6.5"]
[White "Hokr, Matyáš"]
[Black "Mošnička, Jan"]
[Result "0-1"]
[TimeControl "2x90min+30s"]
[WhiteFideId "23734663"]
[BlackFideId "329398"]
[WhiteElo "1228"]
[BlackElo "1784"]

1. Nf3 {[%clk 01:30:32]} {[%emt 00:00:28]} Nf6 {[%clk 01:30:22]} {[%emt
00:00:37]} 2. d4 {[%clk 01:30:29]} {[%emt 00:00:33]} d5 {[%clk 01:29:50]}
{[%emt 00:01:03]} 3. Bf4 {[%clk 01:30:18]} {[%emt 00:00:41]} e6 {[%clk
01:29:00]} {[%emt 00:01:20]} 4. e3 {[%clk 01:29:59]} {[%emt 00:00:49]} c5
{[%clk 01:28:38]} {[%emt 00:00:51]} 5. c3 {[%clk 01:27:11]} {[%emt 00:03:19]}
Nc6 {[%clk 01:24:52]} {[%emt 00:04:15]} 6. Bd3 {[%clk 01:26:20]} {[%emt
00:01:22]} Be7 {[%clk 01:25:03]} {[%emt 00:00:18]} 7. O-O {[%clk 01:26:05]}
{[%emt 00:00:45]} O-O {[%clk 01:25:24]} {[%emt 00:00:09]} 8. Nbd2 {[%clk
01:24:40]} {[%emt 00:01:55]} b6 {[%clk 01:22:06]} {[%emt 00:03:48]} 9. h3
{[%clk 01:21:28]} {[%emt 00:03:41]} Bb7 {[%clk 01:21:45]} {[%emt 00:00:51]} 10.
Rc1 {[%clk 01:18:26]} {[%emt 00:03:33]} h6 {[%clk 01:20:01]} {[%emt 00:02:14]}
11. Re1 {[%clk 01:15:23]} {[%emt 00:03:33]} Bd6 {[%clk 01:10:30]} {[%emt
00:10:02]} 12. Bh2 {[%clk 01:11:59]} {[%emt 00:03:51]} Bxh2+ {[%clk 01:09:29]}
{[%emt 00:01:33]} 13. Kxh2 {[%clk 01:10:54]} {[%emt 00:01:35]} Qc7+ {[%clk
01:09:18]} {[%emt 00:00:41]} 14. Kh1 {[%clk 01:10:36]} {[%emt 00:00:48]} e5
{[%clk 01:08:50]} {[%emt 00:00:58]} 15. Bb5 {[%clk 01:03:38]} {[%emt 00:07:28]}
e4 {[%clk 01:04:31]} {[%emt 00:04:49]} 16. Nh2 {[%clk 01:01:56]} {[%emt
00:02:12]} Ne7 {[%clk 00:52:55]} {[%emt 00:12:06]} 17. Ng4 {[%clk 00:58:56]}
{[%emt 00:03:29]} Nxg4 {[%clk 00:52:04]} {[%emt 00:01:23]} 18. Qxg4 {[%clk
00:58:57]} {[%emt 00:00:29]} c4 {[%clk 00:51:36]} {[%emt 00:00:57]} 19. Qd7
{[%clk 00:55:04]} {[%emt 00:04:19]} Qxd7 {[%clk 00:48:53]} {[%emt 00:03:17]} 20.
Bxd7 {[%clk 00:54:14]} {[%emt 00:01:20]} Rad8 {[%clk 00:46:17]} {[%emt
00:03:06]} 21. Bg4 {[%clk 00:53:31]} {[%emt 00:01:10]} b5 {[%clk 00:42:57]}
{[%emt 00:03:53]} 22. a3 {[%clk 00:46:11]} {[%emt 00:07:49]} a5 {[%clk
00:37:41]} {[%emt 00:05:47]} 23. Ra1 {[%clk 00:42:11]} {[%emt 00:04:30]} f5
{[%clk 00:34:38]} {[%emt 00:03:33]} 24. Be2 {[%clk 00:41:08]} {[%emt 00:01:33]}
a4 {[%clk 00:28:09]} {[%emt 00:07:00]} 25. Rg1 {[%clk 00:39:16]} {[%emt
00:02:21]} Bc8 {[%clk 00:21:22]} {[%emt 00:07:17]} 26. Raf1 {[%clk 00:37:51]}
{[%emt 00:01:55]} f4 {[%clk 00:18:53]} {[%emt 00:02:59]} 27. Bd1 {[%clk
00:35:29]} {[%emt 00:02:52]} g5 {[%clk 00:17:11]} {[%emt 00:02:12]} 28. Bh5
{[%clk 00:34:19]} {[%emt 00:01:40]} Kg7 {[%clk 00:16:36]} {[%emt 00:01:05]} 29.
Kh2 {[%emt 00:03:24]} Rf6 {[%emt 00:01:23]} 30. Be2 {[%clk 00:34:14]} {[%emt
00:00:11]} fxe3 {[%clk 00:10:56]} {[%emt 00:02:47]} 31. fxe3 {[%clk 00:34:32]}
{[%emt 00:00:12]} Nf5 {[%clk 00:10:21]} {[%emt 00:01:04]} 32. g4 {[%emt
00:04:11]} Nxe3 {[%clk 00:08:50]} {[%emt 00:00:39]} 33. Rxf6 {[%emt 00:01:49]}
Kxf6 {[%emt 00:00:32]} 34. Rg3 {[%clk 00:31:09]} {[%emt 00:00:57]} Nc2 {[%emt
00:00:54]} 35. Rg1 {[%emt 00:02:50]} Kg7 {[%clk 00:08:02]} {[%emt 00:00:05]} 36.
Rf1 {[%clk 00:27:36]} {[%emt 00:01:49]} Rf8 {[%clk 00:08:05]} {[%emt 00:00:26]}
37. Rxf8 {[%clk 00:27:48]} {[%emt 00:00:19]} Kxf8 {[%clk 00:08:26]} {[%emt
00:00:09]} 38. Kg3 {[%clk 00:28:02]} {[%emt 00:00:17]} Ne1 {[%clk 00:07:53]}
{[%emt 00:01:03]} 39. Kf2 {[%clk 00:28:21]} {[%emt 00:00:10]} Nd3+ {[%clk
00:08:00]} {[%emt 00:00:23]} 40. Bxd3 {[%clk 00:28:22]} {[%emt 00:00:29]} cxd3
{[%clk 00:08:03]} {[%emt 00:00:28]} 41. Ke3 {[%emt 00:02:44]} h5 {[%emt
00:01:11]} 42. Nf1 {[%emt 00:00:36]} hxg4 {[%clk 00:08:02]} {[%emt 00:00:02]}
43. hxg4 {[%emt 00:00:07]} Bxg4 {[%emt 00:00:30]} 44. Ng3 {[%emt 00:00:42]} Kg7
{[%clk 00:07:58]} {[%emt 00:00:16]} 45. Nf1 {[%emt 00:00:40]} Kg6 {[%emt
00:00:57]} 46. Ng3 {[%emt 00:01:06]} Bf3 {[%emt 00:00:21]} 47. Kd2 {[%clk
00:26:16]} {[%emt 00:00:05]} Be2 {[%clk 00:05:41]} {[%emt 00:02:04]} 48. Ke3
{[%clk 00:25:39]} {[%emt 00:01:12]} 0-1

[Event "Nové Hrady - Open"]
[Site "Nové Hrady, Czech Republic"]
[Date "2023.08.18"]
[Round "6.6"]
[White "Steinbauer, Sebastián"]
[Black "Voršilka, Jiří"]
[Result "1-0"]
[TimeControl "2x90min+30s"]
[WhiteFideId "399272"]
[BlackFideId "365149"]
[WhiteElo "1782"]
[BlackElo "1556"]

1. e4 {[%clk 01:30:37]} {[%emt 00:00:23]} e5 {[%clk 01:30:52]} {[%emt
00:00:08]} 2. Nf3 {[%clk 01:31:04]} {[%emt 00:00:03]} Nf6 {[%clk 01:31:15]}
{[%emt 00:00:07]} 3. Nxe5 {[%clk 01:31:31]} {[%emt 00:00:04]} d6 {[%clk
01:31:38]} {[%emt 00:00:07]} 4. Nf3 {[%clk 01:31:54]} {[%emt 00:00:07]} Nxe4
{[%clk 01:31:59]} {[%emt 00:00:08]} 5. d3 {[%clk 01:32:21]} {[%emt 00:00:03]}
Nf6 {[%clk 01:32:19]} {[%emt 00:00:10]} 6. d4 {[%clk 01:32:45]} {[%emt
00:00:07]} d5 {[%clk 01:32:35]} {[%emt 00:00:13]} 7. Bd3 {[%clk 01:33:09]}
{[%emt 00:00:07]} Nc6 {[%clk 01:32:42]} {[%emt 00:00:23]} 8. O-O {[%clk
01:33:27]} {[%emt 00:00:11]} Be7 {[%clk 01:32:27]} {[%emt 00:00:45]} 9. c3
{[%clk 01:33:42]} {[%emt 00:00:16]} O-O {[%clk 01:32:24]} {[%emt 00:00:31]} 10.
Ne5 {[%clk 01:33:36]} {[%emt 00:00:38]} Nxe5 {[%clk 01:31:53]} {[%emt
00:01:01]} 11. dxe5 {[%clk 01:34:04]} {[%emt 00:00:07]} Ng4 {[%clk 01:31:59]}
{[%emt 00:00:18]} 12. Qe2 {[%clk 01:27:13]} {[%emt 00:07:21]} Bg5 {[%clk
01:30:54]} {[%emt 00:01:35]} 13. f4 {[%clk 01:27:03]} {[%emt 00:00:41]} Be7
{[%clk 01:31:02]} {[%emt 00:00:22]} 14. f5 {[%clk 01:26:25]} {[%emt 00:01:08]}
Bc5+ {[%clk 01:31:00]} {[%emt 00:00:31]} 15. Kh1 {[%clk 01:26:54]} Nxh2 {[%clk
01:30:19]} {[%emt 00:01:12]} 16. Rf4 {[%clk 01:26:50]} {[%emt 00:00:33]} Qg5
{[%clk 01:29:10]} {[%emt 00:01:39]} 17. Kxh2 {[%emt 00:00:56]} Qh6+ {[%clk
01:29:17]} {[%emt 00:00:03]} 18. Kg3 {[%clk 01:27:11]} {[%emt 00:00:03]} Bg1
{[%clk 01:28:38]} {[%emt 00:01:11]} 19. Qg4 {[%clk 01:09:43]} {[%emt 00:17:57]}
Bh2+ {[%clk 01:22:49]} {[%emt 00:06:19]} 20. Kf3 {[%clk 01:09:14]} {[%emt
00:01:00]} d4 {[%clk 01:22:07]} {[%emt 00:01:11]} 21. cxd4 {[%clk 01:07:42]}
{[%emt 00:02:02]} Qc6+ {[%clk 01:22:27]} {[%emt 00:00:11]} 22. Ke2 {[%clk
01:04:39]} {[%emt 00:03:32]} Qxc1 {[%clk 01:22:46]} {[%emt 00:00:11]} 23. Rf1
{[%clk 01:04:59]} {[%emt 00:00:10]} Qh6 {[%clk 01:20:14]} {[%emt 00:03:01]} 24.
Nd2 {[%clk 01:05:06]} {[%emt 00:00:25]} c5 {[%clk 01:18:03]} {[%emt 00:02:41]}
25. Nf3 {[%clk 01:04:49]} {[%emt 00:00:46]} Bf4 {[%clk 01:17:57]} {[%emt
00:00:37]} 26. Rh1 {[%clk 01:05:04]} {[%emt 00:00:14]} Qb6 {[%clk 01:17:57]}
{[%emt 00:00:30]} 27. Qxf4 {[%clk 01:05:17]} {[%emt 00:00:17]} Qxb2+ {[%clk
01:18:17]} {[%emt 00:00:10]} 28. Qd2 {[%clk 01:05:05]} {[%emt 00:00:42]} 1-0

[Event "Nové Hrady - Open"]
[Site "Nové Hrady, Czech Republic"]
[Date "2023.08.18"]
[Round "6.7"]
[White "Šedivý, Karel"]
[Black "Hejda, Ondřej"]
[Result "1-0"]
[TimeControl "2x90min+30s"]
[WhiteFideId "359653"]
[BlackFideId "23713623"]
[WhiteElo "1583"]
[BlackElo "1246"]

1. d4 {[%clk 01:30:56]} {[%emt 00:00:03]} c6 {[%clk 01:30:36]} {[%emt
00:00:26]} 2. e4 {[%clk 01:30:55]} {[%emt 00:00:30]} d5 {[%clk 01:30:39]}
{[%emt 00:00:27]} 3. exd5 {[%clk 01:30:55]} {[%emt 00:00:30]} cxd5 {[%clk
01:31:01]} {[%emt 00:00:08]} 4. Nf3 {[%clk 01:31:13]} {[%emt 00:00:11]} Bg4
{[%clk 01:29:16]} {[%emt 00:02:15]} 5. Be2 {[%clk 01:29:53]} {[%emt 00:01:50]}
Nc6 {[%clk 01:27:07]} {[%emt 00:02:40]} 6. O-O {[%clk 01:28:23]} {[%emt
00:01:59]} Nf6 {[%clk 01:25:55]} {[%emt 00:01:42]} 7. c3 {[%clk 01:27:10]}
{[%emt 00:01:43]} e6 {[%clk 01:24:41]} {[%emt 00:01:46]} 8. Bg5 {[%clk
01:22:50]} {[%emt 00:04:49]} Be7 {[%clk 01:22:16]} {[%emt 00:02:54]} 9. Nbd2
{[%clk 01:20:35]} {[%emt 00:02:46]} O-O {[%clk 01:20:01]} {[%emt 00:02:45]} 10.
Re1 {[%clk 01:16:51]} {[%emt 00:04:13]} Qc7 {[%clk 01:17:00]} {[%emt 00:03:28]}
11. Ne5 {[%clk 01:11:20]} {[%emt 00:06:04]} Bf5 {[%clk 01:12:26]} {[%emt
00:05:04]} 12. Bd3 {[%clk 01:04:20]} {[%emt 00:07:31]} Bxd3 {[%clk 01:08:22]}
{[%emt 00:04:34]} 13. Nxd3 {[%clk 01:04:36]} {[%emt 00:00:14]} Rfe8 {[%clk
01:06:25]} {[%emt 00:02:26]} 14. Bf4 {[%clk 01:00:20]} {[%emt 00:04:45]} Bd6
{[%clk 01:03:17]} {[%emt 00:03:40]} 15. Be5 {[%clk 00:59:39]} {[%emt 00:01:10]}
Nd7 {[%clk 01:02:10]} {[%emt 00:01:37]} 16. Nf3 {[%clk 00:55:56]} {[%emt
00:04:13]} Ndxe5 {[%clk 00:59:16]} {[%emt 00:03:24]} 17. dxe5 {[%clk 00:50:56]}
{[%emt 00:05:30]} Be7 {[%clk 00:58:18]} {[%emt 00:01:27]} 18. Qa4 {[%clk
00:46:53]} {[%emt 00:04:35]} Bf8 {[%clk 00:52:06]} {[%emt 00:06:41]} 19. Rac1
{[%clk 00:43:13]} {[%emt 00:04:10]} Rad8 {[%clk 00:48:52]} {[%emt 00:03:45]} 20.
Nd4 {[%clk 00:42:07]} {[%emt 00:01:35]} Nxd4 {[%clk 00:45:27]} {[%emt
00:03:56]} 21. cxd4 {[%clk 00:42:24]} {[%emt 00:00:13]} Qb6 {[%clk 00:44:12]}
{[%emt 00:01:41]} 22. Rc2 {[%clk 00:42:05]} {[%emt 00:00:51]} Rc8 {[%clk
00:41:49]} {[%emt 00:02:54]} 23. Rec1 {[%clk 00:42:13]} {[%emt 00:00:21]} Rxc2
{[%clk 00:41:26]} {[%emt 00:00:55]} 24. Rxc2 {[%clk 00:42:36]} {[%emt
00:00:07]} Rd8 {[%clk 00:40:04]} {[%emt 00:01:49]} 25. Kf1 {[%clk 00:35:50]}
{[%emt 00:07:19]} Be7 {[%clk 00:37:15]} {[%emt 00:03:19]} 26. f4 {[%clk
00:35:39]} {[%emt 00:00:41]} f6 {[%clk 00:36:05]} {[%emt 00:01:41]} 27. Ke2
{[%clk 00:34:24]} {[%emt 00:01:43]} fxe5 {[%clk 00:34:45]} {[%emt 00:01:50]} 28.
fxe5 {[%clk 00:34:47]} {[%emt 00:00:07]} Rf8 {[%clk 00:33:58]} {[%emt
00:01:18]} 29. b3 {[%clk 00:31:59]} {[%emt 00:03:18]} a6 {[%clk 00:32:15]}
{[%emt 00:02:13]} 30. g3 {[%clk 00:30:24]} {[%emt 00:02:04]} Qd8 {[%clk
00:30:56]} {[%emt 00:01:49]} 31. Nf4 {[%clk 00:28:29]} {[%emt 00:02:26]} Qb6
{[%clk 00:29:23]} {[%emt 00:02:02]} 32. Ke3 {[%clk 00:25:00]} {[%emt 00:03:59]}
Bg5 {[%clk 00:27:00]} {[%emt 00:02:53]} 33. Qd7 {[%clk 00:24:31]} {[%emt
00:01:00]} Bxf4+ {[%clk 00:24:30]} {[%emt 00:03:00]} 34. gxf4 {[%clk 00:24:51]}
{[%emt 00:00:10]} Rd8 {[%clk 00:23:41]} {[%emt 00:01:12]} 35. Qe7 {[%clk
00:23:21]} {[%emt 00:02:07]} Rf8 {[%clk 00:20:45]} {[%emt 00:03:03]} 36. Rc7
{[%clk 00:23:30]} {[%emt 00:00:44]} 1-0

[Event "Nové Hrady - Open"]
[Site "Nové Hrady, Czech Republic"]
[Date "2023.08.18"]
[Round "6.8"]
[White "Sander, Antonín"]
[Black "Berkovec, Josef"]
[Result "1/2-1/2"]
[TimeControl "2x90min+30s"]
[WhiteFideId "23749920"]
[WhiteElo "1448"]
[BlackElo "1537"]

1. e4 {[%clk 01:30:57]} {[%emt 00:00:03]} e5 {[%clk 01:30:50]} {[%emt
00:00:10]} 2. d4 {[%clk 01:31:20]} {[%emt 00:00:08]} exd4 {[%clk 01:31:12]}
{[%emt 00:00:08]} 3. c3 {[%clk 01:31:43]} {[%emt 00:00:07]} dxc3 {[%clk
01:31:38]} {[%emt 00:00:03]} 4. Bc4 {[%clk 01:32:04]} {[%emt 00:00:10]} Nc6
{[%clk 01:31:21]} {[%emt 00:00:47]} 5. Nxc3 {[%clk 01:31:46]} {[%emt 00:00:47]}
Nf6 {[%clk 01:31:33]} {[%emt 00:00:19]} 6. Nf3 {[%clk 01:31:20]} {[%emt
00:00:55]} Bb4 {[%clk 01:29:43]} {[%emt 00:02:20]} 7. O-O {[%clk 01:27:14]}
{[%emt 00:04:36]} Bxc3 {[%clk 01:29:14]} {[%emt 00:00:59]} 8. bxc3 {[%clk
01:27:38]} {[%emt 00:00:07]} d6 {[%clk 01:29:32]} {[%emt 00:00:12]} 9. e5
{[%clk 01:17:45]} {[%emt 00:10:22]} dxe5 {[%clk 01:29:12]} {[%emt 00:00:50]} 10.
Qxd8+ {[%clk 01:17:35]} {[%emt 00:00:41]} Nxd8 {[%clk 01:29:20]} {[%emt
00:00:21]} 11. Nxe5 {[%clk 01:14:01]} {[%emt 00:04:04]} O-O {[%clk 01:29:40]}
{[%emt 00:00:10]} 12. Ba3 {[%clk 01:08:19]} {[%emt 00:06:13]} Re8 {[%clk
01:28:38]} {[%emt 00:01:31]} 13. Rfe1 {[%clk 01:04:58]} {[%emt 00:03:51]} Be6
{[%clk 01:27:24]} {[%emt 00:01:44]} 14. Bb5 {[%clk 01:00:22]} {[%emt 00:05:07]}
c6 {[%clk 01:26:33]} {[%emt 00:01:20]} 15. Bd3 {[%clk 00:57:41]} {[%emt
00:03:11]} Nd5 {[%clk 01:23:01]} {[%emt 00:04:02]} 16. Nc4 {[%clk 00:52:48]}
{[%emt 00:05:24]} Bd7 {[%clk 01:16:53]} {[%emt 00:06:37]} 17. Rxe8+ {[%clk
00:39:13]} {[%emt 00:14:05]} Bxe8 {[%clk 01:17:16]} {[%emt 00:00:07]} 18. Re1
{[%clk 00:38:58]} {[%emt 00:00:45]} Ne6 {[%clk 01:15:25]} {[%emt 00:02:21]} 19.
Nd6 {[%clk 00:35:05]} {[%emt 00:04:23]} b6 {[%clk 01:09:50]} {[%emt 00:06:04]}
20. c4 {[%clk 00:27:07]} {[%emt 00:08:30]} Nf6 {[%clk 01:09:36]} {[%emt
00:00:43]} 21. Bb2 {[%clk 00:22:08]} {[%emt 00:05:29]} c5 {[%clk 01:05:12]}
{[%emt 00:04:54]} 22. Bxf6 {[%clk 00:15:31]} {[%emt 00:07:07]} gxf6 {[%clk
01:05:36]} {[%emt 00:00:05]} 23. Re3 {[%clk 00:14:05]} {[%emt 00:01:56]} Rd8
{[%clk 01:02:53]} {[%emt 00:03:13]} 24. Ne4 {[%clk 00:12:00]} {[%emt 00:02:36]}
f5 {[%clk 00:58:54]} {[%emt 00:04:28]} 25. Nf6+ {[%clk 00:08:31]} {[%emt
00:04:00]} Kg7 {[%clk 00:59:05]} {[%emt 00:00:18]} 26. Nxe8+ {[%clk 00:06:51]}
{[%emt 00:02:11]} 1/2-1/2

[Event "Nové Hrady - Open"]
[Site "Nové Hrady, Czech Republic"]
[Date "2023.08.18"]
[Round "6.10"]
[White "Junek, Petr"]
[Black "Jiřík, Radovan"]
[Result "1-0"]
[TimeControl "2x90min+30s"]
[WhiteFideId "23739282"]
[BlackFideId "393118"]
[WhiteElo "1554"]
[BlackElo "1445"]

1. e4 {[%emt 00:00:04]} e5 {[%emt 00:00:21]} 2. Nf3 {[%clk 01:30:26]} {[%emt
00:00:09]} Nf6 {[%clk 01:30:53]} {[%emt 00:00:08]} 3. Nxe5 {[%clk 01:30:32]}
{[%emt 00:00:23]} d6 {[%clk 01:31:14]} {[%emt 00:00:10]} 4. Nf3 {[%clk
01:22:21]} {[%emt 00:08:41]} Nxe4 {[%clk 01:31:38]} {[%emt 00:00:05]} 5. Be2
{[%clk 01:22:16]} {[%emt 00:00:36]} Be7 {[%clk 01:31:57]} {[%emt 00:00:11]} 6.
d3 {[%clk 01:21:48]} {[%emt 00:00:58]} Nf6 {[%clk 01:32:20]} {[%emt 00:00:06]}
7. Nc3 {[%clk 01:21:39]} {[%emt 00:00:39]} O-O {[%clk 01:32:32]} {[%emt
00:00:18]} 8. Be3 {[%clk 01:21:31]} {[%emt 00:00:39]} Nc6 {[%clk 01:32:46]}
{[%emt 00:00:16]} 9. Qd2 {[%clk 01:21:29]} {[%emt 00:00:31]} d5 {[%clk
01:30:05]} {[%emt 00:03:12]} 10. d4 {[%clk 01:21:10]} {[%emt 00:00:49]} a6
{[%clk 01:29:00]} {[%emt 00:01:34]} 11. Bd3 {[%clk 01:21:18]} {[%emt 00:00:22]}
Bg4 {[%clk 01:28:58]} {[%emt 00:00:32]} 12. Nh4 {[%clk 01:16:31]} {[%emt
00:05:17]} Ne4 {[%clk 01:26:51]} {[%emt 00:02:37]} 13. Bxe4 {[%clk 01:15:44]}
{[%emt 00:01:17]} dxe4 {[%clk 01:26:48]} {[%emt 00:00:33]} 14. h3 {[%clk
01:11:24]} {[%emt 00:04:50]} Bd7 {[%clk 01:22:49]} {[%emt 00:04:29]} 15. g3
{[%clk 01:11:17]} {[%emt 00:00:37]} Bxh4 {[%clk 01:19:37]} {[%emt 00:03:41]} 16.
gxh4 {[%clk 01:11:34]} {[%emt 00:00:14]} Qxh4 {[%clk 01:19:56]} {[%emt
00:00:10]} 17. O-O-O {[%clk 01:11:48]} {[%emt 00:00:17]} f5 {[%clk 01:18:21]}
{[%emt 00:02:05]} 18. Bg5 {[%clk 01:09:04]} {[%emt 00:03:14]} Qh5 {[%clk
01:17:48]} {[%emt 00:01:03]} 19. Rdg1 {[%clk 01:09:16]} {[%emt 00:00:18]} Kh8
{[%clk 01:16:05]} {[%emt 00:02:13]} 20. Bf4 {[%clk 00:59:37]} {[%emt 00:10:09]}
Rac8 {[%clk 01:14:41]} {[%emt 00:01:55]} 21. Rg5 {[%clk 00:55:44]} {[%emt
00:04:22]} Qf7 {[%clk 01:14:58]} {[%emt 00:00:13]} 22. Rhg1 {[%clk 00:55:38]}
{[%emt 00:00:36]} Rg8 {[%clk 01:13:30]} {[%emt 00:01:58]} 23. h4 {[%clk
00:50:41]} {[%emt 00:05:27]} Ne7 {[%clk 01:07:44]} {[%emt 00:06:16]} 24. Be5
{[%clk 00:50:07]} {[%emt 00:01:04]} Ng6 {[%clk 01:07:52]} {[%emt 00:00:23]} 25.
Rxg6 {[%clk 00:46:05]} {[%emt 00:04:31]} f4 {[%clk 00:59:29]} {[%emt 00:08:54]}
26. Bxg7+ {[%clk 00:44:15]} {[%emt 00:02:19]} Rxg7 {[%clk 00:59:50]} {[%emt
00:00:09]} 27. Rxg7 {[%clk 00:44:37]} {[%emt 00:00:08]} Qf5 {[%clk 00:49:50]}
{[%emt 00:10:30]} 28. Nxe4 {[%clk 00:40:50]} {[%emt 00:04:17]} h6 {[%clk
00:37:30]} {[%emt 00:12:49]} 29. Nf6 {[%clk 00:38:50]} {[%emt 00:02:31]} Qxf6
{[%clk 00:37:53]} {[%emt 00:00:08]} 30. Rxd7 {[%clk 00:38:40]} {[%emt
00:00:39]} Qe6 {[%clk 00:38:14]} {[%emt 00:00:09]} 31. Rgg7 {[%clk 00:38:38]}
{[%emt 00:00:32]} Qxa2 {[%clk 00:36:15]} {[%emt 00:02:30]} 32. Rh7+ {[%clk
00:38:44]} {[%emt 00:00:23]} Kg8 {[%clk 00:36:38]} {[%emt 00:00:08]} 33. Rdg7+
{[%clk 00:39:11]} {[%emt 00:00:02]} Kf8 {[%clk 00:36:07]} {[%emt 00:01:01]} 34.
Qxf4+ {[%clk 00:39:27]} {[%emt 00:00:15]} Kxg7 {[%emt 00:01:01]} 35. Rh8 Kf8
{[%emt 00:00:06]} 1-0